[Event "Titled Tuesday Blitz October 25 Early 2022"]
[White "Melikyan, Gnel"]
[Black "Svane, Frederik"]
[WhiteFideId "54109990"]
[BlackFideId "12923044"]
[WhiteElo "2138"]
[BlackElo "2466"]
[Result "0-1"]
[Round "10"]
[TimeControl "180+1"]
[Date "2022.10.25"]
[WhiteClock "0:01:14"]
[BlackClock "0:02:11"]

1. e4 {[%clk 0:03:00]}  c6 {[%clk 0:02:58]} 2. Nc3 {[%clk 0:02:57]}  g6 {[%clk 0:02:59]} 3. d4 {[%clk 0:02:55]}  d5 {[%clk 0:02:58]} 4. Nf3 {[%clk 0:02:55]}  Bg7 {[%clk 0:02:56]} 5. Be3 {[%clk 0:02:54]}  dxe4 {[%clk 0:02:56]} 6. Nxe4 {[%clk 0:02:54]}  Nd7 {[%clk 0:02:56]} 7. Bc4 {[%clk 0:02:54]}  Nb6 {[%clk 0:02:50]} 8. Bb3 {[%clk 0:02:54]}  Nf6 {[%clk 0:02:50]} 9. Nxf6+ {[%clk 0:02:54]}  exf6 {[%clk 0:02:50]} 10. Qd2 {[%clk 0:02:51]}  O-O {[%clk 0:02:49]} 11. O-O {[%clk 0:02:50]}  Bg4 {[%clk 0:02:48]} 12. Ne1 {[%clk 0:02:49]}  a5 {[%clk 0:02:48]} 13. h3 {[%clk 0:02:45]}  Bf5 {[%clk 0:02:47]} 14. a4 {[%clk 0:02:41]}  Nd5 {[%clk 0:02:46]} 15. Nd3 {[%clk 0:02:39]}  Re8 {[%clk 0:02:45]} 16. Nf4 {[%clk 0:02:26]}  Nxe3 {[%clk 0:02:43]} 17. fxe3 {[%clk 0:02:26]}  Be4 {[%clk 0:02:43]} 18. Rae1 {[%clk 0:02:22]}  f5 {[%clk 0:02:43]} 19. c3 {[%clk 0:02:16]}  Qd6 {[%clk 0:02:43]} 20. Bc2 {[%clk 0:02:15]}  b5 {[%clk 0:02:42]} 21. Ra1 {[%clk 0:02:09]}  Bxc2 {[%clk 0:02:40]} 22. Qxc2 {[%clk 0:02:09]}  Rxe3 {[%clk 0:02:41]} 23. Nd3 {[%clk 0:02:01]}  Rae8 {[%clk 0:02:35]} 24. Rfe1 {[%clk 0:01:54]}  Qg3 {[%clk 0:02:32]} 25. Rxe3 {[%clk 0:01:50]}  Rxe3 {[%clk 0:02:31]} 26. Nf2 {[%clk 0:01:45]}  Bf8 {[%clk 0:02:29]} 27. axb5 {[%clk 0:01:43]}  Bd6 {[%clk 0:02:28]} 28. Kf1 {[%clk 0:01:39]}  cxb5 {[%clk 0:02:24]} 29. Rxa5 {[%clk 0:01:35]}  Qh2 {[%clk 0:02:17]} 30. Ra1 {[%clk 0:01:18]}  Rg3 {[%clk 0:02:12]} 31. Nd1 {[%clk 0:01:14]}  Qh1+ {[%clk 0:02:11]} 0-1


[Site "https://www.chess.com"]

[Event "Titled Tuesday Blitz October 25 Early 2022"]
[White "Mikhailovsky, Vladimir"]
[Black "Faizrakhmanov, Ramil"]
[WhiteFideId "34105414"]
[BlackFideId "24103209"]
[WhiteElo "2297"]
[BlackElo "2421"]
[Result "0-1"]
[Round "10"]
[TimeControl "180+1"]
[Date "2022.10.25"]
[WhiteClock "0:00:02"]
[BlackClock "0:00:48"]

1. e4 {[%clk 0:03:00]}  c6 {[%clk 0:02:57]} 2. c4 {[%clk 0:02:58]}  d5 {[%clk 0:02:58]} 3. cxd5 {[%clk 0:02:59]}  cxd5 {[%clk 0:02:59]} 4. exd5 {[%clk 0:03:00]}  Nf6 {[%clk 0:02:59]} 5. Qa4+ {[%clk 0:03:00]}  Nbd7 {[%clk 0:02:58]} 6. Nc3 {[%clk 0:03:00]}  g6 {[%clk 0:02:58]} 7. Nf3 {[%clk 0:03:01]}  Bg7 {[%clk 0:02:58]} 8. Bc4 {[%clk 0:03:02]}  a6 {[%clk 0:02:58]} 9. d3 {[%clk 0:03:02]}  O-O {[%clk 0:02:58]} 10. Qa3 {[%clk 0:03:02]}  b6 {[%clk 0:02:58]} 11. O-O {[%clk 0:03:02]}  Bb7 {[%clk 0:02:59]} 12. Re1 {[%clk 0:03:03]}  b5 {[%clk 0:02:59]} 13. Bb3 {[%clk 0:03:03]}  Re8 {[%clk 0:03:00]} 14. Be3 {[%clk 0:03:03]}  Nb6 {[%clk 0:02:53]} 15. Bxb6 {[%clk 0:03:04]}  Qxb6 {[%clk 0:02:54]} 16. Qb4 {[%clk 0:03:05]}  Qd6 {[%clk 0:02:37]} 17. Qh4 {[%clk 0:02:52]}  Nxd5 {[%clk 0:02:19]} 18. Ng5 {[%clk 0:01:45]}  h6 {[%clk 0:02:11]} 19. Nge4 {[%clk 0:01:36]}  Qf4 {[%clk 0:02:06]} 20. Qh3 {[%clk 0:01:37]}  Nxc3 {[%clk 0:02:02]} 21. bxc3 {[%clk 0:01:30]}  e6 {[%clk 0:02:01]} 22. Rac1 {[%clk 0:01:24]}  Rac8 {[%clk 0:01:56]} 23. c4 {[%clk 0:01:24]}  bxc4 {[%clk 0:01:48]} 24. Bxc4 {[%clk 0:01:25]}  Bd4 {[%clk 0:01:43]} 25. Rc2 {[%clk 0:01:07]}  h5 {[%clk 0:01:28]} 26. Qg3 {[%clk 0:00:44]}  Qxg3 {[%clk 0:01:24]} 27. hxg3 {[%clk 0:00:45]}  Red8 {[%clk 0:01:22]} 28. Rec1 {[%clk 0:00:43]}  Kg7 {[%clk 0:01:21]} 29. Bb3 {[%clk 0:00:39]}  Rxc2 {[%clk 0:01:19]} 30. Rxc2 {[%clk 0:00:40]}  Bb6 {[%clk 0:01:17]} 31. Bc4 {[%clk 0:00:33]}  Bd4 {[%clk 0:01:14]} 32. Bb3 {[%clk 0:00:31]}  Bd5 {[%clk 0:01:13]} 33. Bxd5 {[%clk 0:00:24]}  Rxd5 {[%clk 0:01:14]} 34. Kf1 {[%clk 0:00:14]}  Rb5 {[%clk 0:01:08]} 35. Ke2 {[%clk 0:00:14]}  Rb1 {[%clk 0:01:07]} 36. Nd2 {[%clk 0:00:08]}  Rb6 {[%clk 0:01:05]} 37. Nb3 {[%clk 0:00:08]}  Be5 {[%clk 0:01:01]} 38. d4 {[%clk 0:00:08]}  Bd6 {[%clk 0:01:01]} 39. Ke3 {[%clk 0:00:08]}  g5 {[%clk 0:00:57]} 40. Na5 {[%clk 0:00:06]}  Rb4 {[%clk 0:00:52]} 41. Rc6 {[%clk 0:00:02]}  Ra4 {[%clk 0:00:48]} 0-1


[Site "https://www.chess.com"]

[Event "Titled Tuesday Blitz October 25 Early 2022"]
[White "Perez Ponsa, Federico"]
[Black "Matlakov, Maxim"]
[WhiteFideId "117927"]
[BlackFideId "4168003"]
[WhiteElo "2604"]
[BlackElo "2669"]
[Result "1-0"]
[Round "10"]
[TimeControl "180+1"]
[Date "2022.10.25"]
[WhiteClock "0:00:05"]
[BlackClock "0:00:39"]

1. e4 {[%clk 0:03:00]}  e5 {[%clk 0:03:00]} 2. Nf3 {[%clk 0:03:01]}  Nc6 {[%clk 0:03:00]} 3. Bb5 {[%clk 0:03:02]}  a6 {[%clk 0:03:00]} 4. Ba4 {[%clk 0:03:03]}  Nf6 {[%clk 0:03:00]} 5. O-O {[%clk 0:03:03]}  Bc5 {[%clk 0:02:59]} 6. Bxc6 {[%clk 0:02:59]}  dxc6 {[%clk 0:02:59]} 7. d3 {[%clk 0:03:00]}  Qe7 {[%clk 0:02:59]} 8. c3 {[%clk 0:02:59]}  Bg4 {[%clk 0:02:56]} 9. h3 {[%clk 0:02:46]}  Bh5 {[%clk 0:02:56]} 10. Nbd2 {[%clk 0:02:44]}  O-O-O {[%clk 0:02:48]} 11. Qc2 {[%clk 0:02:43]}  g5 {[%clk 0:02:45]} 12. d4 {[%clk 0:02:30]}  exd4 {[%clk 0:02:28]} 13. cxd4 {[%clk 0:02:31]}  Ba7 {[%clk 0:02:26]} 14. e5 {[%clk 0:02:25]}  Nd5 {[%clk 0:02:14]} 15. Qf5+ {[%clk 0:00:21]}  Qd7 {[%clk 0:02:13]} 16. Qxg5 {[%clk 0:00:18]}  Bg6 {[%clk 0:02:13]} 17. Qg4 {[%clk 0:00:17]}  Bf5 {[%clk 0:02:13]} 18. Qh4 {[%clk 0:00:16]}  Rhg8 {[%clk 0:02:03]} 19. Kh2 {[%clk 0:00:17]}  Nb4 {[%clk 0:02:00]} 20. Nb3 {[%clk 0:00:15]}  Nc2 {[%clk 0:01:57]} 21. Rb1 {[%clk 0:00:13]}  Nxd4 {[%clk 0:01:32]} 22. Nbxd4 {[%clk 0:00:13]}  Bxb1 {[%clk 0:01:32]} 23. Bg5 {[%clk 0:00:13]}  Bd3 {[%clk 0:01:32]} 24. Rd1 {[%clk 0:00:12]}  Be2 {[%clk 0:01:32]} 25. Rd2 {[%clk 0:00:10]}  Bf1 {[%clk 0:01:13]} 26. Kg1 {[%clk 0:00:06]}  Bxg2 {[%clk 0:00:57]} 27. Kxg2 {[%clk 0:00:07]}  f6 {[%clk 0:00:52]} 28. exf6 {[%clk 0:00:06]}  Qd5 {[%clk 0:00:53]} 29. Qg4+ {[%clk 0:00:05]}  Kb8 {[%clk 0:00:52]} 30. Ne6 {[%clk 0:00:05]}  Qxd2 {[%clk 0:00:39]} 31. Nxd2 {[%clk 0:00:05]} 1-0


[Site "https://www.chess.com"]

[Event "Titled Tuesday Blitz October 25 Early 2022"]
[White "Rozman, Levy"]
[Black "Pranav, V"]
[WhiteFideId "2039877"]
[BlackFideId "25060783"]
[WhiteElo "2376"]
[BlackElo "2430"]
[Result "0-1"]
[Round "10"]
[TimeControl "180+1"]
[Date "2022.10.25"]
[WhiteClock "0:00:03"]
[BlackClock "0:00:10"]

1. e4 {[%clk 0:03:00]}  e5 {[%clk 0:02:59]} 2. Nc3 {[%clk 0:03:01]}  Nf6 {[%clk 0:02:59]} 3. f4 {[%clk 0:03:01]}  d5 {[%clk 0:02:59]} 4. fxe5 {[%clk 0:03:01]}  Nxe4 {[%clk 0:03:00]} 5. Qf3 {[%clk 0:03:02]}  Nc6 {[%clk 0:02:59]} 6. Bb5 {[%clk 0:03:01]}  Nxc3 {[%clk 0:02:54]} 7. dxc3 {[%clk 0:03:02]}  a6 {[%clk 0:02:52]} 8. Bxc6+ {[%clk 0:03:00]}  bxc6 {[%clk 0:02:53]} 9. Ne2 {[%clk 0:02:58]}  Bc5 {[%clk 0:02:50]} 10. Be3 {[%clk 0:02:54]}  Bxe3 {[%clk 0:02:50]} 11. Qxe3 {[%clk 0:02:55]}  O-O {[%clk 0:02:49]} 12. O-O-O {[%clk 0:02:43]}  Re8 {[%clk 0:02:47]} 13. Nd4 {[%clk 0:02:40]}  Bd7 {[%clk 0:02:41]} 14. Nb3 {[%clk 0:02:29]}  a5 {[%clk 0:02:36]} 15. c4 {[%clk 0:02:18]}  Qe7 {[%clk 0:02:18]} 16. cxd5 {[%clk 0:02:02]}  cxd5 {[%clk 0:02:03]} 17. Nc5 {[%clk 0:01:51]}  Be6 {[%clk 0:01:45]} 18. Rhe1 {[%clk 0:01:42]}  Red8 {[%clk 0:01:41]} 19. g3 {[%clk 0:01:37]}  a4 {[%clk 0:01:37]} 20. Qd4 {[%clk 0:01:20]}  Rdb8 {[%clk 0:01:35]} 21. a3 {[%clk 0:01:12]}  Rb5 {[%clk 0:01:31]} 22. Nxe6 {[%clk 0:00:54]}  fxe6 {[%clk 0:01:32]} 23. c3 {[%clk 0:00:18]}  Rab8 {[%clk 0:01:29]} 24. Re2 {[%clk 0:00:18]}  Rxb2 {[%clk 0:01:07]} 25. Rxb2 {[%clk 0:00:18]}  Qxa3 {[%clk 0:01:07]} 26. c4 {[%clk 0:00:19]}  c5 {[%clk 0:01:08]} 27. Kb1 {[%clk 0:00:07]}  cxd4 {[%clk 0:01:03]} 28. Rxb8+ {[%clk 0:00:08]}  Kf7 {[%clk 0:01:04]} 29. Rxd4 {[%clk 0:00:04]}  Qe3 {[%clk 0:00:27]} 30. Rf4+ {[%clk 0:00:04]}  Kg6 {[%clk 0:00:27]} 31. cxd5 {[%clk 0:00:05]}  Qe1+ {[%clk 0:00:27]} 32. Ka2 {[%clk 0:00:04]}  Qxe5 {[%clk 0:00:27]} 33. Rb2 {[%clk 0:00:01]}  Qxd5+ {[%clk 0:00:26]} 34. Ka3 {[%clk 0:00:02]}  Qd3+ {[%clk 0:00:24]} 35. Kxa4 {[%clk 0:00:02]}  e5 {[%clk 0:00:24]} 36. Rfb4 {[%clk 0:00:02]}  e4 {[%clk 0:00:24]} 37. Rb6+ {[%clk 0:00:02]}  Kh5 {[%clk 0:00:23]} 38. R2b3 {[%clk 0:00:03]}  Qc4+ {[%clk 0:00:20]} 39. R3b4 {[%clk 0:00:03]}  Qa2+ {[%clk 0:00:19]} 40. Kb5 {[%clk 0:00:03]}  e3 {[%clk 0:00:19]} 41. Rc6 {[%clk 0:00:03]}  e2 {[%clk 0:00:16]} 42. Rc5+ {[%clk 0:00:03]}  g5 {[%clk 0:00:15]} 43. h4 {[%clk 0:00:03]}  e1=Q {[%clk 0:00:11]} 44. hxg5 {[%clk 0:00:03]}  Qee2+ {[%clk 0:00:10]} 45. Kb6 {[%clk 0:00:03]}  Qaa6+ {[%clk 0:00:09]} 46. Kc7 {[%clk 0:00:03]}  Qe7+ {[%clk 0:00:10]} 47. Kb8 {[%clk 0:00:03]}  Qea7# {[%clk 0:00:10]} 0-1


[Site "https://www.chess.com"]

[Event "Titled Tuesday Blitz October 25 Early 2022"]
[White "Rustemov, Alexander"]
[Black "Peyrer, Konstantin"]
[WhiteFideId "4119002"]
[BlackFideId "1640879"]
[WhiteElo "2790"]
[BlackElo "2415"]
[Result "0-1"]
[Round "10"]
[TimeControl "180+1"]
[Date "2022.10.25"]
[WhiteClock "0:00:23"]
[BlackClock "0:00:57"]

1. d4 {[%clk 0:03:00]}  Nf6 {[%clk 0:02:58]} 2. c4 {[%clk 0:02:59]}  g6 {[%clk 0:02:59]} 3. Nf3 {[%clk 0:02:59]}  Bg7 {[%clk 0:02:59]} 4. g3 {[%clk 0:02:59]}  O-O {[%clk 0:02:58]} 5. Bg2 {[%clk 0:03:00]}  c5 {[%clk 0:02:54]} 6. Nc3 {[%clk 0:03:00]}  cxd4 {[%clk 0:02:54]} 7. Nxd4 {[%clk 0:03:00]}  Nc6 {[%clk 0:02:55]} 8. O-O {[%clk 0:03:00]}  d6 {[%clk 0:02:55]} 9. e3 {[%clk 0:02:53]}  Bd7 {[%clk 0:02:51]} 10. b3 {[%clk 0:02:51]}  Qa5 {[%clk 0:02:51]} 11. Bb2 {[%clk 0:02:49]}  Rfc8 {[%clk 0:02:51]} 12. Qd2 {[%clk 0:02:34]}  a6 {[%clk 0:02:49]} 13. Rfd1 {[%clk 0:02:29]}  Rab8 {[%clk 0:02:37]} 14. Rac1 {[%clk 0:02:26]}  Nxd4 {[%clk 0:02:35]} 15. Qxd4 {[%clk 0:01:58]}  Bc6 {[%clk 0:02:02]} 16. Qd3 {[%clk 0:01:37]}  Bxg2 {[%clk 0:01:59]} 17. Kxg2 {[%clk 0:01:38]}  Nd7 {[%clk 0:01:58]} 18. Rc2 {[%clk 0:01:28]}  Ne5 {[%clk 0:01:42]} 19. Qd5 {[%clk 0:01:23]}  Rc5 {[%clk 0:01:37]} 20. Qe4 {[%clk 0:01:21]}  f5 {[%clk 0:01:29]} 21. Qd4 {[%clk 0:01:16]}  Nxc4 {[%clk 0:01:26]} 22. Qxc5 {[%clk 0:00:52]}  Qxc5 {[%clk 0:01:24]} 23. bxc4 {[%clk 0:00:51]}  Qxc4 {[%clk 0:01:25]} 24. Rcc1 {[%clk 0:00:42]}  Bxc3 {[%clk 0:01:16]} 25. Bxc3 {[%clk 0:00:37]}  Rc8 {[%clk 0:01:09]} 26. a3 {[%clk 0:00:33]}  Qb3 {[%clk 0:00:59]} 27. Bb4 {[%clk 0:00:31]}  Rxc1 {[%clk 0:00:59]} 28. Rxc1 {[%clk 0:00:32]}  a5 {[%clk 0:00:58]} 29. Bxa5 {[%clk 0:00:29]}  Qd5+ {[%clk 0:00:57]} 30. Kg1 {[%clk 0:00:25]}  Qxa5 {[%clk 0:00:58]} 31. Rb1 {[%clk 0:00:24]}  Qxa3 {[%clk 0:00:57]} 32. Rxb7 {[%clk 0:00:24]}  Qa1+ {[%clk 0:00:57]} 33. Kg2 {[%clk 0:00:23]}  Qa8 {[%clk 0:00:57]} 0-1


[Site "https://www.chess.com"]

[Event "Titled Tuesday Blitz October 25 Early 2022"]
[White "Seliverstov, Vladimir"]
[Black "Bortnyk, Olexandr"]
[WhiteFideId "4192036"]
[BlackFideId "14120828"]
[WhiteElo "2489"]
[BlackElo "2723"]
[Result "0-1"]
[Round "10"]
[TimeControl "180+1"]
[Date "2022.10.25"]
[WhiteClock "0:00:51"]
[BlackClock "0:01:01"]

1. d4 {[%clk 0:03:00]}  d6 {[%clk 0:02:59]} 2. c4 {[%clk 0:02:56]}  e5 {[%clk 0:02:59]} 3. Nf3 {[%clk 0:02:55]}  e4 {[%clk 0:03:00]} 4. Nfd2 {[%clk 0:02:55]}  f5 {[%clk 0:03:00]} 5. Nc3 {[%clk 0:02:55]}  g6 {[%clk 0:03:01]} 6. e3 {[%clk 0:02:51]}  Bh6 {[%clk 0:03:01]} 7. Be2 {[%clk 0:02:45]}  Nf6 {[%clk 0:03:01]} 8. Qc2 {[%clk 0:02:45]}  O-O {[%clk 0:03:00]} 9. b3 {[%clk 0:02:45]}  c6 {[%clk 0:02:59]} 10. Bb2 {[%clk 0:02:46]}  d5 {[%clk 0:03:00]} 11. O-O-O {[%clk 0:02:46]}  Be6 {[%clk 0:03:00]} 12. h3 {[%clk 0:02:46]}  a5 {[%clk 0:02:56]} 13. Rdg1 {[%clk 0:02:45]}  f4 {[%clk 0:02:55]} 14. exf4 {[%clk 0:02:27]}  Bxf4 {[%clk 0:02:56]} 15. Kb1 {[%clk 0:02:27]}  Na6 {[%clk 0:02:53]} 16. a3 {[%clk 0:02:25]}  e3 {[%clk 0:02:50]} 17. fxe3 {[%clk 0:02:23]}  Bxe3 {[%clk 0:02:51]} 18. Re1 {[%clk 0:02:16]}  Bxd4 {[%clk 0:02:50]} 19. cxd5 {[%clk 0:02:14]}  cxd5 {[%clk 0:02:37]} 20. Nf3 {[%clk 0:02:00]}  Bf2 {[%clk 0:02:23]} 21. Rd1 {[%clk 0:01:40]}  Nc5 {[%clk 0:02:22]} 22. Nd4 {[%clk 0:01:33]}  Bxd4 {[%clk 0:02:21]} 23. Rxd4 {[%clk 0:01:33]}  Bf5 {[%clk 0:02:21]} 24. Bd3 {[%clk 0:01:28]}  Nxd3 {[%clk 0:02:21]} 25. Rxd3 {[%clk 0:01:29]}  Rc8 {[%clk 0:02:21]} 26. g4 {[%clk 0:01:23]}  Be4 {[%clk 0:02:15]} 27. g5 {[%clk 0:01:14]}  Bxh1 {[%clk 0:02:10]} 28. gxf6 {[%clk 0:01:13]}  Be4 {[%clk 0:02:08]} 29. Qd2 {[%clk 0:01:10]}  Bxd3+ {[%clk 0:01:58]} 30. Qxd3 {[%clk 0:01:10]}  Qxf6 {[%clk 0:01:58]} 31. Qxd5+ {[%clk 0:01:07]}  Qf7 {[%clk 0:01:59]} 32. Qe5 {[%clk 0:01:05]}  Qxb3 {[%clk 0:01:52]} 33. Nd1 {[%clk 0:00:53]}  Qxd1+ {[%clk 0:01:26]} 34. Ka2 {[%clk 0:00:51]}  Qd7 {[%clk 0:01:01]} 0-1


[Site "https://www.chess.com"]

[Event "Titled Tuesday Blitz October 25 Early 2022"]
[White "Aradhya, Garg"]
[Black "Papasimakopoulos, Alexandros"]
[WhiteFideId "25006746"]
[BlackFideId "4244125"]
[WhiteElo "2223"]
[BlackElo "2357"]
[Result "1-0"]
[Round "11"]
[TimeControl "180+1"]
[Date "2022.10.25"]
[WhiteClock "0:00:44"]
[BlackClock "0:00:06"]

1. d4 {[%clk 0:03:00]}  e6 {[%clk 0:02:45]} 2. e4 {[%clk 0:03:00]}  d5 {[%clk 0:02:45]} 3. e5 {[%clk 0:03:00]}  b6 {[%clk 0:02:43]} 4. Nf3 {[%clk 0:02:53]}  Ne7 {[%clk 0:02:38]} 5. h4 {[%clk 0:02:53]}  Ba6 {[%clk 0:02:34]} 6. Bxa6 {[%clk 0:02:52]}  Nxa6 {[%clk 0:02:35]} 7. Qe2 {[%clk 0:02:51]}  Nb8 {[%clk 0:02:35]} 8. h5 {[%clk 0:02:51]}  h6 {[%clk 0:02:35]} 9. a4 {[%clk 0:02:49]}  a5 {[%clk 0:02:34]} 10. Nc3 {[%clk 0:02:44]}  Nec6 {[%clk 0:02:22]} 11. Nb5 {[%clk 0:02:43]}  Na7 {[%clk 0:02:21]} 12. c3 {[%clk 0:02:38]}  c6 {[%clk 0:02:14]} 13. Na3 {[%clk 0:02:34]}  Bxa3 {[%clk 0:02:13]} 14. Rxa3 {[%clk 0:02:33]}  c5 {[%clk 0:02:12]} 15. O-O {[%clk 0:02:30]}  O-O {[%clk 0:02:12]} 16. Rd1 {[%clk 0:02:21]}  Nac6 {[%clk 0:02:01]} 17. c4 {[%clk 0:01:43]}  Nb4 {[%clk 0:01:46]} 18. cxd5 {[%clk 0:01:37]}  exd5 {[%clk 0:01:39]} 19. e6 {[%clk 0:01:33]}  N8c6 {[%clk 0:01:34]} 20. Re3 {[%clk 0:01:30]}  Qd6 {[%clk 0:01:30]} 21. b3 {[%clk 0:01:26]}  Rfe8 {[%clk 0:01:12]} 22. exf7+ {[%clk 0:01:26]}  Kxf7 {[%clk 0:01:12]} 23. Re1 {[%clk 0:01:26]}  Rxe3 {[%clk 0:01:01]} 24. Bxe3 {[%clk 0:01:26]}  Re8 {[%clk 0:00:58]} 25. dxc5 {[%clk 0:01:26]}  bxc5 {[%clk 0:00:58]} 26. Bxc5 {[%clk 0:01:26]}  Rxe2 {[%clk 0:00:50]} 27. Bxd6 {[%clk 0:01:26]}  Rb2 {[%clk 0:00:51]} 28. Ne5+ {[%clk 0:01:18]}  Nxe5 {[%clk 0:00:50]} 29. Rxe5 {[%clk 0:01:17]}  Rxb3 {[%clk 0:00:49]} 30. Re7+ {[%clk 0:01:17]}  Kf6 {[%clk 0:00:46]} 31. Ra7 {[%clk 0:01:17]}  Nd3 {[%clk 0:00:34]} 32. f3 {[%clk 0:01:11]}  Rb2 {[%clk 0:00:22]} 33. Rxa5 {[%clk 0:01:00]}  Ne1 {[%clk 0:00:22]} 34. Rxd5 {[%clk 0:01:00]}  Ke6 {[%clk 0:00:17]} 35. Re5+ {[%clk 0:01:00]}  Kxd6 {[%clk 0:00:18]} 36. Rxe1 {[%clk 0:01:00]}  Rb4 {[%clk 0:00:13]} 37. Re4 {[%clk 0:01:00]}  Rb2 {[%clk 0:00:12]} 38. Rg4 {[%clk 0:01:00]}  Ra2 {[%clk 0:00:06]} 39. Rxg7 {[%clk 0:00:59]}  Ke5 {[%clk 0:00:06]} 40. Rg6 {[%clk 0:00:59]}  Rxa4 {[%clk 0:00:06]} 41. Rxh6 {[%clk 0:00:59]}  Kf4 {[%clk 0:00:07]} 42. Rg6 {[%clk 0:00:59]}  Ra5 {[%clk 0:00:05]} 43. Rg4+ {[%clk 0:00:58]}  Kf5 {[%clk 0:00:04]} 44. h6 {[%clk 0:00:57]}  Ra7 {[%clk 0:00:03]} 45. Rh4 {[%clk 0:00:54]}  Rh7 {[%clk 0:00:03]} 46. Rh5+ {[%clk 0:00:53]}  Kg6 {[%clk 0:00:03]} 47. g4 {[%clk 0:00:53]}  Kf7 {[%clk 0:00:04]} 48. Kg2 {[%clk 0:00:53]}  Kg8 {[%clk 0:00:04]} 49. Kg3 {[%clk 0:00:46]}  Rc7 {[%clk 0:00:05]} 50. Rg5+ {[%clk 0:00:45]}  Kh7 {[%clk 0:00:06]} 51. Rg7+ {[%clk 0:00:44]} 1-0


[Site "https://www.chess.com"]

[Event "Titled Tuesday Blitz October 25 Early 2022"]
[White "Bortnyk, Olexandr"]
[Black "Pultinevicius, Paulius"]
[WhiteFideId "14120828"]
[BlackFideId "12809390"]
[WhiteElo "2723"]
[BlackElo "2500"]
[Result "1-0"]
[Round "11"]
[TimeControl "180+1"]
[Date "2022.10.25"]
[WhiteClock "0:00:56"]
[BlackClock "0:00:04"]

1. d4 {[%clk 0:03:00]}  Nf6 {[%clk 0:02:59]} 2. Nc3 {[%clk 0:03:00]}  d5 {[%clk 0:02:53]} 3. Bf4 {[%clk 0:03:01]}  e6 {[%clk 0:02:46]} 4. Nb5 {[%clk 0:03:01]}  Na6 {[%clk 0:02:45]} 5. e3 {[%clk 0:03:01]}  c6 {[%clk 0:02:44]} 6. Nc3 {[%clk 0:03:01]}  Nb8 {[%clk 0:02:41]} 7. Nf3 {[%clk 0:03:01]}  Be7 {[%clk 0:02:40]} 8. Bd3 {[%clk 0:03:00]}  b6 {[%clk 0:02:37]} 9. Qe2 {[%clk 0:03:00]}  O-O {[%clk 0:02:35]} 10. e4 {[%clk 0:03:00]}  c5 {[%clk 0:02:29]} 11. e5 {[%clk 0:02:21]}  Nfd7 {[%clk 0:02:09]} 12. h4 {[%clk 0:02:20]}  h6 {[%clk 0:02:09]} 13. Bxh6 {[%clk 0:01:56]}  gxh6 {[%clk 0:01:55]} 14. Rh3 {[%clk 0:01:52]}  Re8 {[%clk 0:01:20]} 15. Rg3+ {[%clk 0:01:45]}  Kh8 {[%clk 0:01:19]} 16. Ng5 {[%clk 0:01:03]}  Bxg5 {[%clk 0:00:36]} 17. hxg5 {[%clk 0:01:04]}  Qe7 {[%clk 0:00:16]} 18. Qh5 {[%clk 0:00:59]}  Qf8 {[%clk 0:00:16]} 19. g6 {[%clk 0:00:59]}  cxd4 {[%clk 0:00:04]} 20. gxf7 {[%clk 0:00:56]}  Qg7 {[%clk 0:00:04]} 21. fxe8=Q+ {[%clk 0:00:56]} 1-0


[Site "https://www.chess.com"]

[Event "Titled Tuesday Blitz October 25 Early 2022"]
[White "Chernobay, Artem"]
[Black "Baskakov, Egor"]
[WhiteFideId "4167406"]
[BlackFideId "24197866"]
[WhiteElo "2473"]
[BlackElo "2211"]
[Result "1-0"]
[Round "11"]
[TimeControl "180+1"]
[Date "2022.10.25"]
[WhiteClock "0:00:21"]
[BlackClock "0:00:22"]

1. e4 {[%clk 0:02:59]}  c5 {[%clk 0:02:58]} 2. Nf3 {[%clk 0:02:58]}  Nf6 {[%clk 0:02:54]} 3. e5 {[%clk 0:02:58]}  Nd5 {[%clk 0:02:54]} 4. Ng5 {[%clk 0:02:58]}  e6 {[%clk 0:02:55]} 5. d4 {[%clk 0:02:58]}  cxd4 {[%clk 0:02:42]} 6. Qf3 {[%clk 0:02:58]}  f6 {[%clk 0:02:42]} 7. Bd3 {[%clk 0:02:58]}  g6 {[%clk 0:02:41]} 8. exf6 {[%clk 0:02:57]}  Qxf6 {[%clk 0:02:41]} 9. Qg3 {[%clk 0:02:54]}  Nc6 {[%clk 0:02:22]} 10. O-O {[%clk 0:02:41]}  Be7 {[%clk 0:02:05]} 11. Ne4 {[%clk 0:02:28]}  Qe5 {[%clk 0:02:02]} 12. f4 {[%clk 0:02:26]}  Qg7 {[%clk 0:02:02]} 13. Na3 {[%clk 0:02:03]}  O-O {[%clk 0:01:56]} 14. Nc4 {[%clk 0:01:59]}  Ne3 {[%clk 0:01:37]} 15. Nxe3 {[%clk 0:01:52]}  dxe3 {[%clk 0:01:37]} 16. Bxe3 {[%clk 0:01:53]}  d5 {[%clk 0:01:37]} 17. Ng5 {[%clk 0:01:49]}  Bd7 {[%clk 0:01:29]} 18. c3 {[%clk 0:01:49]}  d4 {[%clk 0:01:25]} 19. Bd2 {[%clk 0:01:35]}  Rae8 {[%clk 0:01:10]} 20. Rae1 {[%clk 0:01:34]}  Bf6 {[%clk 0:01:09]} 21. Ne4 {[%clk 0:01:24]}  Be7 {[%clk 0:01:08]} 22. Kh1 {[%clk 0:01:15]}  Rf5 {[%clk 0:01:06]} 23. cxd4 {[%clk 0:01:08]}  Nxd4 {[%clk 0:01:05]} 24. Bc3 {[%clk 0:01:08]}  Bc6 {[%clk 0:01:05]} 25. Qe3 {[%clk 0:01:04]}  Rd8 {[%clk 0:01:02]} 26. Ng5 {[%clk 0:00:58]}  Bxg5 {[%clk 0:00:39]} 27. Bxf5 {[%clk 0:00:57]}  Nxf5 {[%clk 0:00:39]} 28. Qxe6+ {[%clk 0:00:56]}  Qf7 {[%clk 0:00:39]} 29. Qxf7+ {[%clk 0:00:52]}  Kxf7 {[%clk 0:00:40]} 30. fxg5 {[%clk 0:00:53]}  Rd3 {[%clk 0:00:36]} 31. Kg1 {[%clk 0:00:50]}  Kg8 {[%clk 0:00:36]} 32. Rf2 {[%clk 0:00:40]}  b5 {[%clk 0:00:33]} 33. Ref1 {[%clk 0:00:37]}  Rd8 {[%clk 0:00:27]} 34. g4 {[%clk 0:00:34]}  Ne3 {[%clk 0:00:26]} 35. Re1 {[%clk 0:00:25]}  Nxg4 {[%clk 0:00:25]} 36. Rf4 {[%clk 0:00:23]}  h5 {[%clk 0:00:22]} 37. h3 {[%clk 0:00:21]} 1-0


[Site "https://www.chess.com"]